fUST/lending_fUST_20251203
["ID","MTS","AMOUNT","RATE_DAILY","PERIOD"]
[395524575,1764700251671,-575.393284,0.00013698,2]
[395524576,1764700251680,-745.97,0.00013698,2]
[395524577,1764700251689,-575.393284,0.00013698,2]
[395524578,1764700251698,-575.393284,0.00013698,2]
[395524579,1764700251707,-575.393284,0.00013698,2]
[395524580,1764700251717,-138.84612078,0.00013698,2]
[395524581,1764700251732,-12.15387922,0.00013698,2]
[395524582,1764700251741,-575.393284,0.00013698,2]
[395524583,1764700251750,-151.0,0.00013698,2]
[395524584,1764700251759,-500.0,0.00013698,2]
[395524585,1764700251769,-575.393284,0.00013698,2]
[395524586,1764700251777,-575.393284,0.00013698,2]
[395524587,1764700251786,-575.393284,0.00013698,2]
[395524588,1764700251794,-500.0,0.00013698,2]
[395524589,1764700251803,-1054.46,0.00013698,2]
[395524590,1764700251812,-575.393284,0.00013698,2]
[395524591,1764700251820,-575.393284,0.00013698,2]
[395524592,1764700251828,-222.388828,0.00013698,2]
[395524593,1764700251837,-222.388828,0.00013698,2]
[395524594,1764700251846,-575.393284,0.00013698,2]
[395524595,1764700251854,-222.388828,0.00013698,2]
[395524596,1764700251864,-575.393284,0.00013698,2]
[395524597,1764700251873,-222.388828,0.00013698,2]
[395524598,1764700251881,-575.393284,0.00013698,2]
[395524599,1764700251890,-1000.0,0.00013699,2]
[395524600,1764700251899,-1500.0,0.00013699,2]
[395524601,1764700251909,-151.0,0.00013699,2]
[395524602,1764700251918,-151.0,0.00013699,2]
[395524603,1764700251927,-151.0,0.00013699,2]
[395524604,1764700251936,-151.0,0.00013699,2]
[395524605,1764700251945,-151.0,0.00013699,2]
[395524606,1764700251954,-151.0,0.00013699,2]
[395524607,1764700251964,-151.0,0.00013699,2]
[395524608,1764700251973,-151.0,0.00013699,2]
[395524609,1764700251980,-223.118789,0.00013699,2]
[395524610,1764700251989,-321.758298,0.00013699,2]
[395524611,1764700251997,-321.758298,0.00013699,2]
[395524612,1764700252004,-321.758298,0.00013699,2]
[395524613,1764700252012,-321.758298,0.00013699,2]
[395524614,1764700252020,-321.758298,0.00013699,2]
[395524615,1764700252029,-321.758298,0.00013699,2]
[395524616,1764700252039,-321.758298,0.00013699,2]
[395524617,1764700252049,-500.0,0.00013699,2]
[395524618,1764700252058,-486.03151271,0.00013699,2]
[395524619,1764700252067,-500.0,0.00013699,2]
[395524620,1764700252076,-500.0,0.00013699,2]
[395524621,1764700252085,-500.0,0.00013699,2]
[395524622,1764700252094,-500.96307994,0.00013699,2]
[395524623,1764700252103,-500.0,0.00013699,2]
[395524624,1764700252112,-500.0,0.00013699,2]
[395524625,1764700252125,-634.70618051,0.00013699,2]
[395524626,1764700252136,-500.0,0.00013699,2]
[395524627,1764700252145,-500.78830288,0.00013699,2]
[395524628,1764700252155,-157.60394291,0.00013699,2]
[395524629,1764700252164,-500.0,0.00013699,2]
[395524630,1764700252173,-500.0,0.00013699,2]
[395524631,1764700252183,-500.76969169,0.00013699,2]
[395524632,1764700252192,-500.0,0.00013699,2]
[395524633,1764700252204,-500.0,0.00013699,2]
[395524634,1764700252213,-500.0,0.00013699,2]
[395524635,1764700252222,-500.0,0.00013699,2]
[395524636,1764700252231,-500.73023488,0.00013699,2]
[395524637,1764700252240,-157.69498152,0.00013699,2]
[395524638,1764700252249,-500.0,0.00013699,2]
[395524639,1764700252259,-500.58669864,0.00013699,2]
[395524640,1764700252268,-500.0,0.00013699,2]
[395524641,1764700252277,-500.0,0.00013699,2]
[395524642,1764700252286,-519.3578698,0.00013699,2]
[395524643,1764700252295,-1000.0,0.00013699,2]
[395524644,1764700252304,-1000.0,0.00013699,2]
[395524645,1764700252314,-1000.0,0.00013699,2]
[395524646,1764700252323,-1000.0,0.00013699,2]
[395524647,1764700252332,-1000.0,0.00013699,2]
[395524648,1764700252341,-283.8756,0.00013699,2]
[395524649,1764700252350,-151.0,0.000137,2]
[395524650,1764700252360,-151.0,0.000137,2]
[395524651,1764700252370,-151.0,0.000137,2]
[395524652,1764700252379,-151.0,0.000137,2]
[395524653,1764700252389,-151.0,0.000137,2]
[395524654,1764700252399,-151.0,0.000137,2]
[395524655,1764700252408,-151.0,0.000137,2]
[395524656,1764700252418,-151.0,0.000137,2]
[395524657,1764700252593,-151.0,0.000137,2]
[395524658,1764700252603,-151.0,0.000137,2]
[395524659,1764700252613,-151.0,0.000137,2]
[395524660,1764700252622,-151.0,0.000137,2]
[395524661,1764700252632,-151.0,0.000137,2]
[395524662,1764700252642,-151.0,0.000137,2]
[395524663,1764700252651,-1000.0,0.00013821,2]
[395524664,1764700252660,-1000.0,0.00013821,2]
[395524665,1764700252669,-1000.0,0.00013821,2]
[395524666,1764700252678,-1000.0,0.00013821,2]
[395524667,1764700252687,-151.0,0.00013835,2]
[395524668,1764700252695,-151.0,0.00013835,2]
[395524669,1764700252705,-151.0,0.00013835,2]
[395524670,1764700252714,-151.0,0.00013835,2]
[395524671,1764700252723,-151.0,0.00013835,2]
[395524672,1764700252732,-151.0,0.00013835,2]
[395524673,1764700252741,-151.0,0.00013835,2]
[395524674,1764700252751,-151.0,0.00013835,2]
[395524675,1764700252761,-500.0,0.00013835,2]
[395524676,1764700252770,-198.7281992,0.00013835,2]
[395524677,1764700252780,-151.0,0.00013835,2]
[395524678,1764700252789,-500.0,0.00013835,2]
[395524679,1764700252799,-200.34732141,0.00013835,2]
[395524680,1764700252807,-500.0,0.00013835,2]
[395524681,1764700252816,-500.0,0.00013835,2]
[395524682,1764700252825,-151.0,0.00013835,2]
[395524683,1764700252835,-151.0,0.00013835,2]
[395524684,1764700252845,-151.0,0.00013835,2]
[395524685,1764700252854,-500.39125058,0.00013835,2]
[395524686,1764700252864,-378.1919068,0.0001387,2]
[395524687,1764700252873,-378.53313808,0.0001387,2]
[395524688,1764700252882,-500.0,0.00013871,2]
[395524689,1764700252891,-677.87431045,0.00013872,2]
[395524691,1764700252901,-147.28023134,0.00013889,2]
[395524694,1764700252923,-56.17989219,0.00013889,2]
[395524696,1764700252933,-1452.15845021,0.00013933,2]
[395524698,1764700252943,-151.0,0.00013972,2]
[395524700,1764700252952,-198.55780571,0.00013972,2]
[395524702,1764700252962,-500.0,0.00013972,2]
[395524704,1764700252971,-151.0,0.00013972,2]
[395524706,1764700252981,-500.0,0.00013972,2]
[395524708,1764700252991,-500.0,0.00013972,2]
[395524710,1764700253000,-500.81627121,0.00013972,2]
[395524712,1764700253010,-199.54917972,0.00013972,2]
[395524714,1764700253019,-151.0,0.00013972,2]
[395524716,1764700253028,-151.0,0.00013972,2]
[395524717,1764700253038,-2872.185808,0.00013972,2]
[395524719,1764700253048,-500.0,0.00013972,2]
[395524721,1764700253057,-500.0,0.00013972,2]
[395524723,1764700253067,-500.0,0.00013972,2]
[395524725,1764700253077,-500.0,0.00013972,2]
[395524727,1764700253087,-500.0,0.00013972,2]
[395524729,1764700253097,-516.97257397,0.00013972,2]
[395524731,1764700253106,-193.24572082,0.00013972,2]
[395524734,1764700253126,-306.75427918,0.00013972,2]
[395524736,1764700253136,-500.0,0.00013972,2]
[395524738,1764700253146,-500.0,0.00013972,2]
[395524740,1764700253157,-500.0,0.00013972,2]
[395524742,1764700253166,-500.0,0.00013972,2]
[395524744,1764700253176,-500.0,0.00013972,2]
[395524745,1764700253186,-500.0,0.00013972,2]
[395524747,1764700253196,-500.0,0.00013972,2]
[395524749,1764700253206,-500.0,0.00013972,2]
[395524751,1764700253216,-500.0,0.00013972,2]
[395524754,1764700253226,-822.86,0.00013972,2]
[395524756,1764700253236,-690.16,0.00013972,2]
[395524757,1764700253246,-500.0,0.00013972,2]
[395524759,1764700253256,-501.2676105,0.00013972,2]
[395524761,1764700253266,-500.0,0.00013972,2]
[395524763,1764700253275,-500.0,0.00013972,2]
[395524765,1764700253286,-500.0,0.00013972,2]
[395524767,1764700253296,-944.82,0.00013972,2]
[395524769,1764700253306,-500.0,0.00013972,2]
[395524771,1764700253316,-500.0,0.00013972,2]
[395524773,1764700253326,-500.0,0.00013972,2]
[395524775,1764700253336,-505.34598072,0.00013972,2]
[395524777,1764700253346,-500.0,0.00013972,2]
[395524779,1764700253356,-500.0,0.00013972,2]
[395524781,1764700253367,-1072.55,0.00013972,2]
[395524783,1764700253376,-500.0,0.00013972,2]
[395524785,1764700253386,-500.0,0.00013972,2]
[395524787,1764700253395,-500.97392611,0.00013972,2]
[395524789,1764700253405,-500.0,0.00013972,2]
[395524791,1764700253415,-500.0,0.00013972,2]
[395524793,1764700253424,-500.0,0.00013972,2]
[395524795,1764700253434,-500.0,0.00013972,2]
[395524797,1764700253443,-301.37088903,0.00013972,2]
[395524799,1764700253455,-501.08741684,0.00013972,2]
[395524801,1764700253464,-500.0,0.00013972,2]
[395524802,1764700253474,-548.22955297,0.00013972,2]
[395524804,1764700253484,-599.59,0.00013972,2]
[395524806,1764700253494,-500.0,0.00013972,2]
[395524808,1764700253504,-500.0,0.00013972,2]
[395524810,1764700253515,-500.0,0.00013972,2]
[395524812,1764700253525,-500.0,0.00013972,2]
[395524814,1764700253535,-500.0,0.00013972,2]
[395524816,1764700253545,-500.0,0.00013972,2]
[395524818,1764700253555,-500.0,0.00013972,2]
[395524820,1764700253564,-500.0,0.00013972,2]
[395524822,1764700253575,-500.0,0.00013972,2]
[395524824,1764700253584,-516.20650368,0.00013972,2]
[395524826,1764700253594,-500.0,0.00013972,2]
[395524828,1764700253604,-886.13,0.00013972,2]
[395524830,1764700253614,-623.2,0.00013972,2]
[395524832,1764700253624,-500.0,0.00013972,2]
[395524834,1764700253633,-500.0,0.00013972,2]
[395524836,1764700253644,-500.0,0.00013972,2]
[395524838,1764700253654,-911.67,0.00013972,2]
[395524841,1764700253664,-501.30633138,0.00013972,2]
[395524842,1764700253676,-500.0,0.00013972,2]
[395524844,1764700253685,-500.0,0.00013972,2]
[395524846,1764700253695,-500.0,0.00013972,2]
[395524848,1764700253707,-500.0,0.00013972,2]
[395524850,1764700253717,-500.0,0.00013972,2]
[395524852,1764700253726,-954.32,0.00013972,2]
[395524854,1764700253737,-500.0,0.00013972,2]
[395524857,1764700253748,-500.0,0.00013972,2]
[395524858,1764700253757,-500.0,0.00013972,2]
[395524860,1764700253767,-500.64561738,0.00013972,2]
[395524862,1764700253777,-500.0,0.00013972,2]
[395524865,1764700253787,-500.0,0.00013972,2]
[395524867,1764700253797,-636.37917961,0.00013972,2]
[395524869,1764700253808,-500.0,0.00013972,2]
[395524871,1764700253819,-500.0,0.00013972,2]
[395524873,1764700253830,-500.0,0.00013972,2]
[395524875,1764700253840,-500.0,0.00013972,2]
[395524877,1764700253851,-500.0,0.00013972,2]
[395524879,1764700253861,-621.63,0.00013972,2]
[395524881,1764700253872,-500.0,0.00013972,2]
[395524883,1764700253882,-500.0,0.00013972,2]
[395524885,1764700253892,-500.0,0.00013972,2]
[395524887,1764700253902,-500.0,0.00013972,2]
[395524889,1764700253912,-500.0,0.00013972,2]
[395524891,1764700253923,-500.0,0.00013972,2]
[395524892,1764700253932,-500.0,0.00013972,2]
[395524894,1764700253943,-1280.13,0.00013972,2]
[395524896,1764700253953,-524.35,0.00013972,2]
[395524898,1764700253964,-861.06,0.00013972,2]
[395524900,1764700253975,-501.30184955,0.00013972,2]
[395524902,1764700253986,-1452.64,0.00013972,2]
[395524905,1764700253997,-500.0,0.00013972,2]
[395524906,1764700254008,-1138.79,0.00013972,2]
[395524909,1764700254018,-500.0,0.00013972,2]
[395524910,1764700254029,-500.89635083,0.00013972,2]
[395524912,1764700254039,-407.55106068,0.00013972,2]
[395524915,1764700254049,-1132.92,0.00013972,2]
[395524917,1764700254059,-236.38822531,0.00013972,2]
[395524919,1764700254068,-500.0,0.00013972,2]
[395524921,1764700254077,-500.0,0.00013972,2]
[395524923,1764700254087,-500.0,0.00013972,2]
[395524925,1764700254099,-500.0,0.00013972,2]
[395524927,1764700254108,-500.0,0.00013972,2]
[395524929,1764700254119,-500.0,0.00013972,2]
[395524931,1764700254130,-500.0,0.00013972,2]
[395524933,1764700254140,-500.0,0.00013972,2]
[395524935,1764700254150,-1442.93,0.00013972,2]
[395524937,1764700254160,-500.0,0.00013972,2]
[395524939,1764700254170,-500.0,0.00013972,2]
[395524941,1764700254179,-500.0,0.00013972,2]
[395524943,1764700254188,-337.34176062,0.00013972,2]
[395524945,1764700254200,-500.0,0.00013972,2]
[395524947,1764700254209,-500.0,0.00013972,2]
[395524949,1764700254219,-743.32,0.00013972,2]
[395524950,1764700254228,-1286.19,0.00013972,2]
[395524951,1764700254238,-500.0,0.00013972,2]
[395524952,1764700254247,-500.0,0.00013972,2]
[395524953,1764700254257,-500.0,0.00013972,2]
[395524954,1764700254266,-507.07118672,0.00013972,2]
[395524955,1764700254275,-500.0,0.00013972,2]
[395524956,1764700254285,-500.0,0.00013972,2]
[395524957,1764700254294,-500.0,0.00013972,2]
[395524958,1764700254304,-500.0,0.00013972,2]
[395524959,1764700254313,-463.91437654,0.00013972,2]
[395524960,1764700254323,-500.27553148,0.00013972,2]
[395524961,1764700254332,-994.38,0.00013972,2]
[395524963,1764700254342,-500.0,0.00013972,2]
[395524965,1764700254351,-500.0,0.00013972,2]
[395524967,1764700254360,-500.0,0.00013972,2]
[395524969,1764700254369,-500.0,0.00013972,2]
[395524971,1764700254379,-500.0,0.00013972,2]
[395524973,1764700254388,-1207.07,0.00013972,2]
[395524975,1764700254398,-547.67,0.00013972,2]
[395524977,1764700254407,-500.0,0.00013972,2]
[395524979,1764700254416,-500.0,0.00013972,2]
[395524981,1764700254425,-500.0,0.00013972,2]
[395524983,1764700254435,-434.77051096,0.00013972,2]
[395524990,1764700254486,-321.758298,0.00013699,2]
[395524992,1764700254495,-28.42135049,0.00013972,2]
[395524994,1764700254506,-39.12199958,0.00013972,2]
[395524996,1764700254515,-500.0,0.00013972,2]
[395524998,1764700254524,-500.69707884,0.00013972,2]
[395525000,1764700254533,-500.0,0.00013972,2]
[395525002,1764700254542,-500.0,0.00013972,2]
[395525004,1764700254551,-500.0,0.00013972,2]
[395525006,1764700254560,-500.0,0.00013972,2]
[395525008,1764700254569,-500.0,0.00013972,2]
[395525010,1764700254578,-500.0,0.00013972,2]
[395525012,1764700254587,-500.68958629,0.00013972,2]
[395525014,1764700254596,-643.84,0.00013972,2]
[395525016,1764700254605,-500.0,0.00013972,2]
[395525018,1764700254614,-551.94,0.00013972,2]
[395525020,1764700254623,-500.0,0.00013972,2]
[395525022,1764700254632,-500.0,0.00013972,2]
[395525024,1764700254641,-500.0,0.00013972,2]
[395525026,1764700254651,-569.28212289,0.00013972,2]
[395525028,1764700254660,-500.0,0.00013972,2]
[395525030,1764700254669,-503.33305396,0.00013972,2]
[395525032,1764700254678,-736.5,0.00013972,2]
[395525034,1764700254687,-500.0,0.00013972,2]
[395525036,1764700254696,-500.0,0.00013972,2]
[395525038,1764700254707,-787.24,0.00013972,2]
[395525040,1764700254716,-500.0,0.00013972,2]
[395525041,1764700254727,-655.37,0.00013972,2]
[395525044,1764700254738,-500.0,0.00013972,2]
[395525046,1764700254748,-500.0,0.00013972,2]
[395525047,1764700254757,-500.0,0.00013972,2]
[395525049,1764700254768,-500.0,0.00013972,2]
[395525051,1764700254777,-500.0,0.00013972,2]
[395525053,1764700254787,-500.0,0.00013972,2]
[395525055,1764700254795,-500.0,0.00013972,2]
[395525057,1764700254805,-500.0,0.00013972,2]
[395525059,1764700254814,-777.22,0.00013972,2]
[395525061,1764700254823,-717.18,0.00013972,2]
[395525063,1764700254833,-500.0,0.00013972,2]
[395525065,1764700254842,-500.0,0.00013972,2]
[395525067,1764700254851,-642.97,0.00013972,2]
[395525069,1764700254860,-500.0,0.00013972,2]
[395525071,1764700254869,-500.0,0.00013972,2]
[395525073,1764700254879,-682.99,0.00013972,2]
[395525075,1764700254889,-500.0,0.00013972,2]
[395525077,1764700254899,-500.0,0.00013972,2]
[395525079,1764700254908,-500.0,0.00013972,2]
[395525081,1764700254918,-500.0,0.00013972,2]
[395525083,1764700254927,-468.40366716,0.00013972,2]
[395525086,1764700254937,-500.0,0.00013972,2]
[395525087,1764700254946,-500.0,0.00013972,2]
[395525089,1764700254955,-500.0,0.00013972,2]
[395525091,1764700254964,-500.0,0.00013972,2]
[395525093,1764700254974,-500.0,0.00013972,2]
[395525096,1764700254984,-500.0,0.00013972,2]
[395525097,1764700254994,-500.0,0.00013972,2]
[395525100,1764700255010,-1002.4531689,0.00013972,2]
[395525101,1764700255019,-500.0,0.00013972,2]
[395525104,1764700255030,-500.0,0.00013972,2]
[395525105,1764700255041,-500.0,0.00013972,2]
[395525108,1764700255060,-454.48239001,0.00013972,2]
[395525109,1764700255069,-507.37418815,0.00013972,2]
[395525112,1764700255079,-1300.6,0.00013972,2]
[395525113,1764700255087,-500.0,0.00013972,2]
[395525115,1764700255096,-1234.64,0.00013972,2]
[395525117,1764700255105,-998.85,0.00013972,2]
[395525119,1764700255115,-500.0,0.00013972,2]
[395525121,1764700255128,-500.0,0.00013972,2]
[395525123,1764700255137,-502.47909576,0.00013972,2]
[395525125,1764700255147,-500.0,0.00013972,2]
[395525127,1764700255156,-500.0,0.00013972,2]
[395525129,1764700255166,-500.0,0.00013972,2]
[395525131,1764700255175,-500.0,0.00013972,2]
[395525133,1764700255184,-500.0,0.00013972,2]
[395525135,1764700255194,-663.37,0.00013972,2]
[395525137,1764700255210,-171.50958331,0.00013972,2]
[395525316,1764700256898,-1599.11398289,0.00013561,2]
[395525317,1764700256909,-500.0,0.00013698,2]
[395525320,1764700256920,-575.393284,0.00013698,2]
[395525322,1764700256930,-222.388828,0.00013698,2]
[395525324,1764700256939,-222.388828,0.00013698,2]
[395525325,1764700256948,-575.393284,0.00013698,2]
[395525327,1764700256957,-222.388828,0.00013698,2]
[395525330,1764700256967,-575.393284,0.00013698,2]
[395525332,1764700256976,-222.388828,0.00013698,2]
[395525334,1764700256985,-500.0,0.00013698,2]
[395525336,1764700256994,-575.393284,0.00013698,2]
[395525337,1764700257003,-222.388828,0.00013698,2]
[395525339,1764700257012,-575.393284,0.00013698,2]
[395525341,1764700257021,-222.388828,0.00013698,2]
[395525343,1764700257030,-575.393284,0.00013698,2]
[395525345,1764700257039,-222.388828,0.00013698,2]
[395525347,1764700257048,-575.393287,0.00013698,2]
[395525349,1764700257057,-222.388828,0.00013698,2]
[395525351,1764700257066,-222.388828,0.00013698,2]
[395525353,1764700257075,-500.40062775,0.00013698,2]
[395525355,1764700257083,-222.388828,0.00013698,2]
[395525357,1764700257092,-222.388828,0.00013698,2]
[395525359,1764700257101,-222.388828,0.00013698,2]
[395525361,1764700257110,-500.46775757,0.00013698,2]
[395525363,1764700257121,-222.388828,0.00013698,2]
[395525365,1764700257130,-500.0,0.00013698,2]
[395525367,1764700257140,-222.388828,0.00013698,2]
[395525369,1764700257149,-222.388828,0.00013698,2]
[395525371,1764700257160,-500.0,0.00013698,2]
[395525373,1764700257169,-222.38882,0.00013698,2]
[395525375,1764700257178,-321.758298,0.00013699,2]
[395525377,1764700257187,-321.758298,0.00013699,2]
[395525379,1764700257197,-321.758298,0.00013699,2]
[395525381,1764700257211,-321.758298,0.00013699,2]
[395525383,1764700257221,-321.758298,0.00013699,2]
[395525385,1764700257231,-321.758298,0.00013699,2]
[395525387,1764700257240,-321.758298,0.00013699,2]
[395525389,1764700257248,-321.758298,0.00013699,2]
[395525391,1764700257257,-321.758298,0.00013699,2]
[395525393,1764700257266,-321.758298,0.00013699,2]
[395525395,1764700257276,-321.758298,0.00013699,2]
[395525397,1764700257286,-321.758294,0.00013699,2]
[395525399,1764700257295,-500.0,0.00013972,2]
[395525401,1764700257303,-500.0,0.00013972,2]
[395525403,1764700257312,-1874.34,0.00013972,2]
[395525405,1764700257321,-500.0,0.00013972,2]
[395525407,1764700257330,-500.0,0.00013972,2]
[395525409,1764700257340,-500.0,0.00013972,2]
[395525411,1764700257348,-500.0,0.00013972,2]
[395525413,1764700257357,-500.0,0.00013972,2]
[395525415,1764700257367,-500.0,0.00013972,2]
[395525417,1764700257379,-500.0,0.00013972,2]
[395525419,1764700257388,-500.0,0.00013972,2]
[395525421,1764700257397,-1323.39,0.00013972,2]
[395525423,1764700257407,-500.0,0.00013972,2]
[395525425,1764700257416,-1022.46,0.00013972,2]
[395525427,1764700257425,-500.0,0.00013972,2]
[395525429,1764700257435,-500.0,0.00013972,2]
[395525431,1764700257445,-680.39,0.00013972,2]
[395525433,1764700257454,-705.84,0.00013972,2]
[395525435,1764700257463,-500.0,0.00013972,2]
[395525437,1764700257473,-500.0,0.00013972,2]
[395525439,1764700257482,-1214.22,0.00013972,2]
[395525441,1764700257492,-500.0,0.00013972,2]
[395525443,1764700257501,-500.0,0.00013972,2]
[395525445,1764700257511,-500.0,0.00013972,2]
[395525447,1764700257521,-1015.56,0.00013972,2]
[395525449,1764700257530,-500.0,0.00013972,2]
[395525452,1764700257541,-502.85824662,0.00013972,2]
[395525453,1764700257550,-500.0,0.00013972,2]
[395525456,1764700257560,-468.95509321,0.00013972,2]
[395525458,1764700257570,-500.0,0.00013972,2]
[395525460,1764700257579,-508.24,0.00013972,2]
[395525461,1764700257588,-500.0,0.00013972,2]
[395525464,1764700257598,-500.0,0.00013972,2]
[395525466,1764700257607,-500.0,0.00013972,2]
[395525468,1764700257616,-1441.93,0.00013972,2]
[395525470,1764700257627,-500.0,0.00013972,2]
[395525472,1764700257635,-682.71,0.00013972,2]
[395525474,1764700257644,-1368.61,0.00013972,2]
[395525476,1764700257653,-500.0,0.00013972,2]
[395525478,1764700257662,-500.0,0.00013972,2]
[395525480,1764700257670,-500.0,0.00013972,2]
[395525482,1764700257679,-627.35,0.00013972,2]
[395525484,1764700257688,-500.0,0.00013972,2]
[395525485,1764700257698,-500.0,0.00013972,2]
[395525487,1764700257708,-500.0,0.00013972,2]
[395525489,1764700257717,-896.16,0.00013972,2]
[395525492,1764700257727,-500.0,0.00013972,2]
[395525493,1764700257737,-500.0,0.00013972,2]
[395525495,1764700257745,-500.0,0.00013972,2]
[395525497,1764700257754,-500.0,0.00013972,2]
[395525499,1764700257763,-500.0,0.00013972,2]
[395525501,1764700257772,-500.0,0.00013972,2]
[395525503,1764700257781,-851.71,0.00013972,2]
[395525505,1764700257791,-500.0,0.00013972,2]
[395525507,1764700257800,-982.64,0.00013972,2]
[395525509,1764700257809,-505.96917492,0.00013972,2]
[395525511,1764700257818,-2168.86,0.00013972,2]
[395525513,1764700257827,-500.0,0.00013972,2]
[395525515,1764700257836,-837.95,0.00013972,2]
[395525517,1764700257847,-510.48720015,0.00013972,2]
[395525519,1764700257856,-500.0,0.00013972,2]
[395525521,1764700257865,-503.64645448,0.00013972,2]
[395525523,1764700257874,-500.0,0.00013972,2]
[395525525,1764700257884,-1863.03,0.00013972,2]
[395525527,1764700257893,-500.0,0.00013972,2]
[395525529,1764700257904,-500.0,0.00013972,2]
[395525531,1764700257913,-500.0,0.00013972,2]
[395525533,1764700257922,-500.70745509,0.00013972,2]
[395525535,1764700257931,-1472.77,0.00013972,2]
[395525537,1764700257940,-500.0,0.00013972,2]
[395525539,1764700257949,-784.97,0.00013972,2]
[395525541,1764700257958,-500.0,0.00013972,2]
[395525543,1764700257967,-500.0,0.00013972,2]
[395525545,1764700257976,-500.0,0.00013972,2]
[395525547,1764700257984,-500.0,0.00013972,2]
[395525549,1764700257993,-500.0,0.00013972,2]
[395525551,1764700258002,-697.16,0.00013972,2]
[395525552,1764700258011,-500.0,0.00013972,2]
[395525554,1764700258021,-500.0,0.00013972,2]
[395525557,1764700258032,-500.0,0.00013972,2]
[395525559,1764700258041,-1013.11,0.00013972,2]
[395525560,1764700258050,-502.99478998,0.00013972,2]
[395525562,1764700258059,-503.67,0.00013972,2]
[395525564,1764700258068,-223.37556874,0.00013972,2]
[395525566,1764700258078,-500.0,0.00013972,2]
[395525568,1764700258087,-500.0,0.00013972,2]
[395525570,1764700258097,-500.0,0.00013972,2]
[395525572,1764700258106,-500.0,0.00013972,2]
[395525574,1764700258116,-500.0,0.00013972,2]
[395525576,1764700258128,-500.0,0.00013972,2]
[395525578,1764700258137,-500.0,0.00013972,2]
[395525580,1764700258146,-500.0,0.00013972,2]
[395525582,1764700258155,-500.0,0.00013972,2]
[395525584,1764700258166,-500.0,0.00013972,2]
[395525586,1764700258175,-500.0,0.00013972,2]
[395525588,1764700258185,-500.0,0.00013972,2]
[395525590,1764700258194,-500.0,0.00013972,2]
[395525592,1764700258206,-500.0,0.00013972,2]
[395525594,1764700258214,-719.86,0.00013972,2]
[395525596,1764700258223,-582.91,0.00013972,2]
[395525598,1764700258232,-500.0,0.00013972,2]
[395525600,1764700258242,-500.0,0.00013972,2]
[395525602,1764700258251,-500.0,0.00013972,2]
[395525604,1764700258260,-500.0,0.00013972,2]
[395525606,1764700258269,-500.0,0.00013972,2]
[395525608,1764700258278,-500.0,0.00013972,2]
[395525609,1764700258288,-500.0,0.00013972,2]
[395525612,1764700258299,-1792.88,0.00013972,2]
[395525614,1764700258308,-1891.68,0.00013972,2]
[395525615,1764700258317,-1227.22,0.00013972,2]
[395525617,1764700258326,-512.12205028,0.00013972,2]
[395525619,1764700258335,-500.0,0.00013972,2]
[395525637,1764700258508,-847.98,0.00013972,2]
[395525639,1764700258518,-500.0,0.00013972,2]
[395525640,1764700258529,-1823.85,0.00013972,2]